fUST/lending_fUST_20250601
["ID","MTS","AMOUNT","RATE_DAILY","PERIOD"]
[363624462,1748790650479,-1353.2,0.0002,2]
[363624464,1748790650489,-440.47,0.0002,2]
[363624466,1748790650498,-602.38,0.0002,2]
[363624468,1748790650508,-626.67,0.0002,2]
[363624470,1748790650518,-430.0,0.0002,2]
[363624472,1748790650528,-1038.56,0.0002,2]
[363624473,1748790650538,-573.55,0.0002,2]
[363624475,1748790650548,-939.98,0.0002,2]
[363624477,1748790650558,-430.0,0.0002,2]
[363624479,1748790650567,-447.61,0.0002,2]
[363624481,1748790650582,-500.0,0.00020067,2]
[363624483,1748790650592,-2725.84323559,0.00020176,2]
[363624485,1748790650602,-265.710669,0.00020187,2]
[363624487,1748790650613,-430.0,0.00020273,2]
[363624489,1748790650624,-430.0,0.00020273,2]
[363624491,1748790650634,-489.97,0.00020273,2]
[363624493,1748790650643,-475.44,0.00020273,2]
[363624495,1748790650654,-594.93,0.00020273,2]
[363624497,1748790650664,-1531.39,0.00020273,2]
[363624499,1748790650674,-811.98,0.00020273,2]
[363624501,1748790650684,-1580.62,0.00020273,2]
[363624503,1748790650693,-930.75,0.00020273,2]
[363624505,1748790650704,-448.11,0.00020273,2]
[363624507,1748790650713,-461.55,0.00020273,2]
[363624509,1748790650723,-280.2,0.00020273,2]
[363624511,1748790650733,-507.04,0.00020273,2]
[363624513,1748790650743,-492.07,0.00020273,2]
[363624515,1748790650753,-1353.2,0.00020273,2]
[363624517,1748790650762,-440.47,0.00020273,2]
[363624519,1748790650772,-602.38,0.00020273,2]
[363624521,1748790650783,-626.67,0.00020273,2]
[363624523,1748790650793,-430.0,0.00020273,2]
[363624525,1748790650805,-1038.56,0.00020273,2]
[363624527,1748790650814,-573.55,0.00020273,2]
[363624539,1748790650917,-939.98,0.00020273,2]
[363624541,1748790650928,-430.0,0.00020273,2]
[363624543,1748790650938,-447.61,0.00020273,2]
[363624545,1748790650948,-2725.84323559,0.00020383,3]
[363624547,1748790650958,-259.80650372,0.00020436,2]
[363624549,1748790650968,-188.77363041,0.00020436,2]
[363624551,1748790650978,-499.08564506,0.00020436,2]
[363624553,1748790650988,-500.0,0.00020479,2]
[363624555,1748790650998,-500.0,0.00020479,2]
[363624557,1748790651008,-430.0,0.00020547,2]
[363624559,1748790651017,-430.0,0.00020547,2]
[363624560,1748790651028,-489.97,0.00020547,2]
[363624562,1748790651038,-475.44,0.00020547,2]
[363624564,1748790651048,-594.93,0.00020547,2]
[363624567,1748790651058,-1531.39,0.00020547,2]
[363624568,1748790651069,-811.98,0.00020547,2]
[363624570,1748790651078,-1580.62,0.00020547,2]
[363624572,1748790651088,-930.75,0.00020547,2]
[363624574,1748790651098,-448.11,0.00020547,2]
[363624576,1748790651108,-461.55,0.00020547,2]
[363624579,1748790651118,-507.04,0.00020547,2]
[363624580,1748790651127,-492.07,0.00020547,2]
[363624582,1748790651137,-1353.2,0.00020547,2]
[363624584,1748790651147,-440.47,0.00020547,2]
[363624586,1748790651156,-602.38,0.00020547,2]
[363624588,1748790651166,-626.67,0.00020547,2]
[363624590,1748790651177,-430.0,0.00020547,2]
[363624592,1748790651187,-1038.56,0.00020547,2]
[363624594,1748790651197,-573.55,0.00020547,2]
[363624596,1748790651206,-939.98,0.00020547,2]
[363624598,1748790651216,-501.43384318,0.00020547,2]
[363624600,1748790651226,-447.61,0.00020547,2]
[363624602,1748790651236,-1518.26890025,0.00020578,2]
[363624604,1748790651245,-2725.84323559,0.0002059,3]
[363624606,1748790651255,-254.1,0.000206,2]
[363624608,1748790651264,-385.73,0.000206,2]
[363624610,1748790651274,-2864.97,0.000206,2]
[363624612,1748790651284,-28757.24,0.000206,2]
[363624614,1748790651295,-168.73407253,0.000206,2]
[363624616,1748790651304,-500.16902464,0.000206,2]
[363624618,1748790651313,-339.88545409,0.000206,2]
[363624620,1748790651323,-649.21402904,0.000206,2]
[363624622,1748790651332,-2725.84323559,0.00020797,4]
[363624624,1748790651341,-430.0,0.00020821,2]
[363624626,1748790651351,-430.0,0.00020821,2]
[363624628,1748790651361,-489.97,0.00020821,2]
[363624630,1748790651371,-475.44,0.00020821,2]
[363624632,1748790651380,-594.93,0.00020821,2]
[363624634,1748790651390,-1531.39,0.00020821,2]
[363624636,1748790651400,-811.98,0.00020821,2]
[363624638,1748790651410,-1580.62,0.00020821,2]
[363624640,1748790651420,-930.75,0.00020821,2]
[363624642,1748790651430,-448.11,0.00020821,2]
[363624644,1748790651439,-461.55,0.00020821,2]
[363624646,1748790651448,-507.04,0.00020821,2]
[363624648,1748790651458,-492.07,0.00020821,2]
[363624649,1748790651468,-1353.2,0.00020821,2]
[363624651,1748790651478,-440.47,0.00020821,2]
[363624653,1748790651487,-602.38,0.00020821,2]
[363624655,1748790651497,-626.67,0.00020821,2]
[363624657,1748790651507,-430.0,0.00020821,2]
[363624659,1748790651517,-1038.56,0.00020821,2]
[363624661,1748790651527,-573.55,0.00020821,2]
[363624663,1748790651537,-939.98,0.00020821,2]
[363624665,1748790651547,-447.61,0.00020821,2]
[363624667,1748790651557,-151.0,0.000209,4]
[363624669,1748790651566,-3000.0,0.00021,2]
[363624671,1748790651580,-500.97,0.00021,2]
[363624673,1748790651589,-2725.84323559,0.00021003,4]
[363624675,1748790651599,-3000.0,0.0002101,2]
[363624677,1748790651609,-3000.0,0.0002102,2]
[363624679,1748790651619,-1000.0,0.00021027,2]
[363624681,1748790651629,-3000.0,0.0002103,2]
[363624683,1748790651639,-3000.0,0.0002104,2]
[363624685,1748790651649,-3000.0,0.0002105,2]
[363624687,1748790651659,-3000.0,0.0002106,2]
[363624689,1748790651669,-3000.0,0.0002107,2]
[363624691,1748790651679,-3000.0,0.0002108,2]
[363624693,1748790651688,-3000.0,0.0002109,2]
[363624695,1748790651697,-288.3,0.00021095,2]
[363624697,1748790651707,-430.0,0.00021095,2]
[363624699,1748790651717,-489.97,0.00021095,2]
[363624701,1748790651726,-475.44,0.00021095,2]
[363624702,1748790651735,-594.93,0.00021095,2]
[363624704,1748790651745,-1531.39,0.00021095,2]
[363624706,1748790651755,-811.98,0.00021095,2]
[363624708,1748790651765,-1580.62,0.00021095,2]
[363624710,1748790651775,-930.75,0.00021095,2]
[363624712,1748790651784,-448.11,0.00021095,2]
[363624714,1748790651795,-461.55,0.00021095,2]
[363624716,1748790651805,-507.04,0.00021095,2]
[363624718,1748790651816,-492.07,0.00021095,2]
[363624720,1748790651825,-1353.2,0.00021095,2]
[363624721,1748790651836,-440.47,0.00021095,2]
[363624722,1748790651846,-602.38,0.00021095,2]
[363624723,1748790651857,-626.67,0.00021095,2]
[363624724,1748790651867,-430.0,0.00021095,2]
[363624725,1748790651877,-1038.56,0.00021095,2]
[363624726,1748790651888,-573.55,0.00021095,2]
[363624727,1748790651898,-939.98,0.00021095,2]
[363624728,1748790651908,-447.61,0.00021095,2]
[363624729,1748790651919,-3000.0,0.000211,2]
[363624730,1748790651928,-3000.0,0.0002111,2]
[363624731,1748790651938,-3000.0,0.0002112,2]
[363624732,1748790651948,-3000.0,0.0002113,2]
[363624733,1748790651957,-3000.0,0.0002114,2]
[363624734,1748790651967,-3000.0,0.0002115,2]
[363624735,1748790651977,-3000.0,0.0002116,2]
[363624736,1748790651987,-3000.0,0.0002117,2]
[363624737,1748790651997,-3000.0,0.0002118,2]
[363624738,1748790652007,-3000.0,0.0002119,2]
[363624739,1748790652017,-3000.0,0.000212,2]
[363624740,1748790652027,-3000.0,0.0002121,2]
[363624741,1748790652036,-2725.84323559,0.0002121,4]
[363624742,1748790652047,-3000.0,0.0002122,2]
[363624743,1748790652058,-3000.0,0.0002123,2]
[363624744,1748790652068,-3000.0,0.0002124,2]
[363624746,1748790652079,-3000.0,0.0002125,2]
[363624747,1748790652089,-3000.0,0.0002126,2]
[363624749,1748790652099,-3000.0,0.0002127,2]
[363624751,1748790652108,-3000.0,0.0002128,2]
[363624753,1748790652118,-3000.0,0.0002129,2]
[363624755,1748790652128,-3000.0,0.000213,2]
[363624757,1748790652137,-3000.0,0.0002131,2]
[363624759,1748790652147,-3000.0,0.0002132,2]
[363624761,1748790652156,-3000.0,0.0002133,2]
[363624763,1748790652165,-3000.0,0.0002134,2]
[363624765,1748790652175,-3000.0,0.0002135,2]
[363624767,1748790652184,-3000.0,0.0002136,2]
[363624768,1748790652193,-430.0,0.00021369,2]
[363624770,1748790652203,-489.97,0.00021369,2]
[363624772,1748790652214,-475.44,0.00021369,2]
[363624774,1748790652223,-594.93,0.00021369,2]
[363624776,1748790652232,-1531.39,0.00021369,2]
[363624778,1748790652242,-811.98,0.00021369,2]
[363624780,1748790652251,-1580.62,0.00021369,2]
[363624782,1748790652261,-930.75,0.00021369,2]
[363624784,1748790652271,-448.11,0.00021369,2]
[363624786,1748790652281,-461.55,0.00021369,2]
[363624788,1748790652291,-507.04,0.00021369,2]
[363624790,1748790652302,-492.07,0.00021369,2]
[363624792,1748790652311,-1353.2,0.00021369,2]
[363624794,1748790652322,-440.47,0.00021369,2]
[363624796,1748790652331,-602.38,0.00021369,2]
[363624799,1748790652342,-626.67,0.00021369,2]
[363624800,1748790652351,-430.0,0.00021369,2]
[363624803,1748790652362,-1038.56,0.00021369,2]
[363624805,1748790652371,-573.55,0.00021369,2]
[363624807,1748790652381,-939.98,0.00021369,2]
[363624808,1748790652391,-447.61,0.00021369,2]
[363624811,1748790652401,-3000.0,0.0002137,2]
[363624813,1748790652411,-3000.0,0.0002138,2]
[363624814,1748790652421,-3000.0,0.0002139,2]
[363624817,1748790652430,-3000.0,0.000214,2]
[363624818,1748790652440,-3000.0,0.0002141,2]
[363624821,1748790652450,-2725.84323559,0.00021417,5]
[363624822,1748790652459,-3000.0,0.0002142,2]
[363624824,1748790652469,-3000.0,0.0002143,2]
[363624827,1748790652480,-4202.395677,0.0002144,2]
[363624829,1748790652490,-1500.0,0.00021574,2]
[363624830,1748790652499,-151.0,0.000216,3]
[363624833,1748790652509,-2725.84323559,0.00021624,5]
[363624834,1748790652519,-533.49,0.00021643,2]
[363624837,1748790652529,-489.97,0.00021643,2]
[363624839,1748790652538,-475.44,0.00021643,2]
[363624840,1748790652547,-594.93,0.00021643,2]
[363624843,1748790652558,-1531.39,0.00021643,2]
[363624845,1748790652568,-811.98,0.00021643,2]
[363624846,1748790652580,-1580.62,0.00021643,2]
[363624848,1748790652590,-930.75,0.00021643,2]
[363624850,1748790652600,-448.11,0.00021643,2]
[363624852,1748790652610,-461.55,0.00021643,2]
[363624855,1748790652619,-507.04,0.00021643,2]
[363624857,1748790652630,-492.07,0.00021643,2]
[363624859,1748790652640,-1353.2,0.00021643,2]
[363624861,1748790652651,-440.47,0.00021643,2]
[363624863,1748790652660,-602.38,0.00021643,2]
[363624865,1748790652670,-626.67,0.00021643,2]
[363624867,1748790652680,-430.0,0.00021643,2]
[363624869,1748790652689,-1038.56,0.00021643,2]
[363624871,1748790652699,-573.55,0.00021643,2]
[363624872,1748790652708,-939.98,0.00021643,2]
[363624874,1748790652718,-447.61,0.00021643,2]
[363624877,1748790652730,-2864.97,0.000218,2]
[363624879,1748790652740,-28757.24,0.000218,2]
[363624880,1748790652750,-2725.84323559,0.00021831,6]
[363624882,1748790652760,-254.1,0.000219,2]
[363624884,1748790652769,-1518.26890025,0.000219,2]
[363624886,1748790652779,-489.97,0.00021917,2]
[363624888,1748790652789,-475.44,0.00021917,2]
[363624890,1748790652799,-594.93,0.00021917,2]
[363624893,1748790652811,-1531.39,0.00021917,2]
[363624895,1748790652821,-811.98,0.00021917,2]
[363624897,1748790652830,-1580.62,0.00021917,2]
[363624899,1748790652839,-930.75,0.00021917,2]
[363624901,1748790652848,-448.11,0.00021917,2]
[363624903,1748790652858,-461.55,0.00021917,2]
[363624914,1748790652955,-507.04,0.00021917,2]
[363624916,1748790652966,-492.07,0.00021917,2]
[363624918,1748790652976,-1353.2,0.00021917,2]
[363624920,1748790652986,-440.47,0.00021917,2]
[363624922,1748790652995,-602.38,0.00021917,2]
[363624924,1748790653005,-626.67,0.00021917,2]
[363624926,1748790653015,-430.0,0.00021917,2]
[363624928,1748790653025,-1038.56,0.00021917,2]
[363624930,1748790653035,-573.55,0.00021917,2]
[363624933,1748790653047,-939.98,0.00021917,2]
[363624934,1748790653057,-447.61,0.00021917,2]
[363624936,1748790653066,-126786.23,0.00022,7]
[363624938,1748790653076,-151.0,0.00022,7]
[363624940,1748790653086,-152.449439,0.00022,7]
[363624942,1748790653096,-151.0,0.00022,7]
[363624944,1748790653106,-151.0,0.00022,7]
[363624946,1748790653115,-151.0,0.00022,7]
[363624948,1748790653125,-172.557018,0.00022,7]
[363624950,1748790653135,-172.557018,0.00022,7]
[363624952,1748790653144,-151.0,0.00022,2]
[363624955,1748790653154,-152.148333,0.00022,7]
[363624957,1748790653163,-198.0,0.00022,2]
[363624959,1748790653173,-154.67873888,0.00022036,2]
[363624961,1748790653183,-207.4,0.00022036,2]
[363624963,1748790653192,-500.0,0.00022036,2]
[363624965,1748790653202,-500.0,0.00022036,2]
[363624967,1748790653212,-500.0,0.00022036,2]
[363624969,1748790653221,-500.0,0.00022036,2]
[363624971,1748790653231,-500.0,0.00022036,2]
[363624973,1748790653240,-5000.0,0.00022036,2]
[363624975,1748790653250,-500.0,0.00022036,2]
[363624977,1748790653259,-500.0,0.00022036,2]
[363624979,1748790653270,-500.0,0.00022036,2]
[363624981,1748790653279,-500.0,0.00022036,2]
[363624983,1748790653289,-500.0,0.00022036,2]
[363624985,1748790653299,-500.0,0.00022036,2]
[363624987,1748790653309,-500.0,0.00022036,2]
[363624989,1748790653319,-500.0,0.00022036,2]
[363624991,1748790653328,-500.0,0.00022036,2]
[363624993,1748790653338,-500.0,0.00022036,2]
[363624995,1748790653347,-2725.84323559,0.00022038,6]
[363624997,1748790653357,-1000.54762423,0.00022122,2]
[363624999,1748790653366,-489.97,0.00022191,2]
[363625001,1748790653376,-475.44,0.00022191,2]
[363625003,1748790653385,-594.93,0.00022191,2]
[363625005,1748790653395,-1531.39,0.00022191,2]
[363625007,1748790653405,-811.98,0.00022191,2]
[363625009,1748790653415,-1580.62,0.00022191,2]
[363625011,1748790653425,-930.75,0.00022191,2]
[363625013,1748790653435,-448.11,0.00022191,2]
[363625015,1748790653444,-461.55,0.00022191,2]
[363625017,1748790653454,-507.04,0.00022191,2]
[363625019,1748790653464,-492.07,0.00022191,2]
[363625021,1748790653473,-1353.2,0.00022191,2]
[363625023,1748790653483,-440.47,0.00022191,2]
[363625025,1748790653493,-602.38,0.00022191,2]
[363625027,1748790653503,-626.67,0.00022191,2]
[363625029,1748790653513,-353.4,0.00022191,2]
[363625031,1748790653523,-1038.56,0.00022191,2]
[363625033,1748790653532,-573.55,0.00022191,2]
[363625035,1748790653543,-939.98,0.00022191,2]
[363625037,1748790653552,-447.61,0.00022191,2]
[363625039,1748790653562,-198.0,0.00022192,7]
[363625041,1748790653571,-385.73,0.000222,7]
[363625043,1748790653584,-151.0,0.000222,8]
[363625045,1748790653594,-2725.84323559,0.00022245,6]
[363625047,1748790653604,-500.0,0.00022259,2]
[363625049,1748790653615,-151.0,0.000223,6]
[363625051,1748790653624,-2725.84323559,0.00022452,7]
[363625053,1748790653634,-489.97,0.00022465,2]
[363625055,1748790653643,-475.44,0.00022465,2]
[363625057,1748790653653,-594.93,0.00022465,2]
[363625059,1748790653663,-1531.39,0.00022465,2]
[363625061,1748790653672,-811.98,0.00022465,2]
[363625063,1748790653682,-1580.62,0.00022465,2]
[363625065,1748790653691,-930.75,0.00022465,2]
[363625067,1748790653701,-448.11,0.00022465,2]
[363625069,1748790653710,-461.55,0.00022465,2]
[363625071,1748790653719,-507.04,0.00022465,2]
[363625073,1748790653730,-492.07,0.00022465,2]
[363625075,1748790653739,-1353.2,0.00022465,2]
[363625077,1748790653751,-440.47,0.00022465,2]
[363625079,1748790653760,-602.38,0.00022465,2]
[363625081,1748790653770,-626.67,0.00022465,2]
[363625083,1748790653779,-1038.56,0.00022465,2]
[363625085,1748790653789,-573.55,0.00022465,2]
[363625087,1748790653799,-939.98,0.00022465,2]
[363625089,1748790653808,-447.61,0.00022465,2]
[363625091,1748790653818,-522.831951,0.00022558,2]
[363625093,1748790653827,-5000.0,0.00022584,2]
[363625095,1748790653837,-173.899304,0.00022603,2]
[363625097,1748790653847,-2725.84323559,0.00022659,7]
[363625099,1748790653856,-490.04247817,0.00022739,2]
[363625101,1748790653866,-475.47447588,0.00022739,2]
[363625103,1748790653875,-595.08,0.00022739,2]
[363625105,1748790653885,-1531.61,0.00022739,2]
[363625107,1748790653895,-812.05494419,0.00022739,2]
[363625109,1748790653904,-1580.77032006,0.00022739,2]
[363625111,1748790653913,-930.93577583,0.00022739,2]
[363625113,1748790653923,-448.23295285,0.00022739,2]
[363625115,1748790653932,-461.77811617,0.00022739,2]
[363625117,1748790653942,-507.26,0.00022739,2]
[363625119,1748790653951,-492.19122629,0.00022739,2]
[363625121,1748790653961,-1353.29932414,0.00022739,2]
[363625123,1748790653970,-440.68261158,0.00022739,2]
[363625125,1748790653979,-602.41,0.00022739,2]
[363625127,1748790653989,-626.8,0.00022739,2]
[363625129,1748790653998,-1038.67978705,0.00022739,2]
[363625131,1748790654008,-573.59,0.00022739,2]
[363625133,1748790654017,-940.12,0.00022739,2]
[363625135,1748790654027,-447.72113983,0.00022739,2]
[363625137,1748790654037,-2725.84323559,0.00022866,8]
[363625139,1748790654047,-154.222867,0.0002292,7]
[363625141,1748790654056,-9859.40490574,0.0002292,2]
[363625143,1748790654065,-5000.0,0.0002292,2]
[363625145,1748790654075,-5000.0,0.0002292,2]
[363625147,1748790654084,-5000.0,0.0002292,2]
[363625149,1748790654094,-5000.0,0.0002292,2]
[363625151,1748790654103,-151.0,0.00023,10]
[363625153,1748790654113,-2864.97,0.00023,2]
[363625155,1748790654123,-28757.24,0.00023,2]
[363625157,1748790654132,-160.0,0.00023,3]
[363625159,1748790654142,-423.51412927,0.00023,3]
[363625161,1748790654151,-229.3709046,0.00023,3]
[363625163,1748790654160,-198.0,0.00023014,7]
[363625165,1748790654170,-155.3651621,0.00023041,2]
[363625167,1748790654180,-2725.84323559,0.00023072,8]
[363625169,1748790654191,-151.0,0.000231,5]
[363625171,1748790654201,-5000.0,0.00023132,2]
[363625173,1748790654211,-41919.22,0.00023186,6]
[363625175,1748790654220,-30391.77,0.00023186,6]
[363625177,1748790654231,-2725.84323559,0.00023279,8]
[363625179,1748790654241,-254.1,0.000233,7]
[363625181,1748790654250,-728.58,0.0002339,2]
[363625183,1748790654260,-122938.48,0.00023393,6]
[363625185,1748790654270,-1396.697928,0.00023395,3]
[363625187,1748790654280,-215.0738,0.00023405,2]
[363625189,1748790654289,-2505.71,0.00023458,3]
[363625191,1748790654298,-2725.84323559,0.00023486,9]
[363625193,1748790654307,-9000.0,0.00023582,2]
[363625195,1748790654318,-500.0,0.0002359,7]
[363625197,1748790654327,-1297.779594,0.000236,2]
[363625200,1748790654337,-3695.69825899,0.0002362,2]
[363625202,1748790654347,-2725.84323559,0.00023693,9]
[363625204,1748790654356,-151.0,0.000237,7]
[363625206,1748790654365,-952.0,0.000237,3]
[363625207,1748790654374,-952.0,0.000237,3]
[363625208,1748790654384,-952.0,0.000237,3]
[363625209,1748790654393,-952.0,0.000237,3]
[363625210,1748790654402,-952.0,0.000237,3]
[363625211,1748790654411,-952.0,0.000237,3]
[363625212,1748790654420,-952.0,0.000237,3]
[363625214,1748790654429,-952.0,0.000237,3]
[363625215,1748790654439,-952.0,0.000237,3]
[363625218,1748790654449,-952.0,0.000237,3]
[363625219,1748790654458,-160.0,0.000237,3]
[363625221,1748790654467,-126786.23,0.000237,7]
[363625223,1748790654477,-151.0,0.000237,7]
[363625226,1748790654486,-151.0,0.000237,7]
[363625228,1748790654496,-152.356031,0.000237,7]
[363625230,1748790654505,-153.0,0.000237,31]
[363625232,1748790654514,-153.0,0.000237,31]
[363625234,1748790654523,-153.0,0.000237,31]
[363625236,1748790654533,-153.0,0.000237,31]
[363625238,1748790654543,-153.0,0.000237,31]
[363625240,1748790654553,-153.0,0.000237,31]
[363625242,1748790654562,-153.0,0.000237,31]
[363625244,1748790654571,-153.0,0.000237,31]
[363625246,1748790654587,-153.0,0.000237,31]
[363625248,1748790654596,-153.0,0.000237,31]
[363625250,1748790654606,-153.0,0.000237,31]
[363625252,1748790654615,-153.0,0.000237,31]
[363625253,1748790654626,-153.0,0.000237,31]
[363625256,1748790654635,-153.0,0.000237,31]
[363625257,1748790654644,-153.0,0.000237,31]
[363625259,1748790654654,-151.0,0.000237,7]
[363625262,1748790654664,-155.021781,0.000237,7]
[363625264,1748790654674,-151.0,0.000237,7]
[363625265,1748790654683,-151.0,0.000237,7]
[363625268,1748790654693,-12666.87825251,0.000237,30]
[363625270,1748790654703,-151.0,0.000237,7]
[363625271,1748790654713,-151.0,0.000237,7]
[363625273,1748790654723,-151.0,0.000237,7]
[363625284,1748790654814,-172.557018,0.000237,7]
[363625286,1748790654824,-172.557018,0.000237,7]
[363625288,1748790654834,-284.572391,0.000237,2]
[363625290,1748790654843,-1740.08153917,0.000237,2]
[363625292,1748790654853,-1740.08153913,0.00023708,2]
[363625294,1748790654863,-1740.08153913,0.00023717,2]
[363625296,1748790654873,-1740.08153913,0.00023725,2]
[363625298,1748790654882,-1740.08153913,0.00023734,2]
[363625300,1748790654894,-150.0,0.00023773,2]
[363625302,1748790654903,-5000.0,0.00023783,30]
[363625304,1748790654913,-500.0,0.0002379,5]
[363625306,1748790654924,-151.0,0.000238,7]
[363625308,1748790654933,-2000.0,0.000238,2]
[363625310,1748790654942,-2000.0,0.000238,2]
[363625312,1748790654952,-2000.0,0.000238,2]
[363625314,1748790654962,-531525.81499634,0.000238,7]
[363625376,1748790655553,-430.0,0.00016438,2]
[363625378,1748790655562,-430.0,0.00016438,2]
[363625380,1748790655572,-430.0,0.00016438,2]
[363625382,1748790655585,-890.92110286,0.00016711,2]
[363625384,1748790655595,-430.0,0.00016712,2]
[363625386,1748790655604,-430.0,0.00016712,2]
[363625388,1748790655613,-430.0,0.00016986,2]
[363625390,1748790655624,-430.0,0.00016986,2]
[363625392,1748790655634,-430.0,0.0001726,2]
[363625394,1748790655643,-102.84941473,0.00017534,2]
[363625622,1748790676586,836.62850893,0.00024,120]
[363625634,1748791219804,984.61322227,0.00024658,120]
[363625647,1748791491822,300000.0,0.00024658,120]
[363625654,1748791551140,-247.95648418,0.00016338,2]
[363625655,1748791551165,-300.0,0.00016436,2]
[363625656,1748791551189,-394.11798386,0.00016437,2]
[363625657,1748791551212,-252.0,0.00016437,2]
[363625658,1748791551240,-500.0,0.00016437,2]
[363625659,1748791551265,-261.94132445,0.00016437,2]
[363625662,1748791633094,-238.05867555,0.00016437,2]
[363625663,1748791633121,-462.74973395,0.00016437,2]
[363625664,1748791633145,-500.0,0.00016437,2]
[363625665,1748791633170,-569.82297284,0.00016437,2]
[363625666,1748791633195,-500.0,0.00016437,2]
[363625667,1748791633219,-333.87463956,0.00016437,2]
[363625668,1748791633242,-252.56490249,0.00016437,2]
[363625669,1748791633269,-430.0,0.00016438,2]
[363625670,1748791633304,-325.73203113,0.00016438,2]
[363625671,1748791633332,-430.26681816,0.00016438,2]
[363625672,1748791633359,-570.0,0.00016438,2]
[363625673,1748791633382,-430.0,0.00016438,2]
[363625674,1748791633406,-430.0,0.00016438,2]
[363625675,1748791633431,-193.92,0.00016438,2]
[363625676,1748791633454,-430.0,0.00016438,2]
[363625677,1748791633476,-430.0,0.00016438,2]
[363625678,1748791633500,-409.55664954,0.00016438,2]
[363625679,1748791633523,-430.0,0.00016438,2]
[363625680,1748791633545,-430.0,0.00016438,2]
[363625681,1748791633568,-151.02126116,0.00016438,2]
[363625682,1748791633591,-430.0,0.00016438,2]
[363625683,1748791633613,-430.0,0.00016438,2]
[363625684,1748791633635,-430.0,0.00016438,2]
[363625685,1748791633657,-430.0,0.00016438,2]
[363625686,1748791633681,-430.0,0.00016438,2]
[363625687,1748791633703,-430.0,0.00016438,2]
[363625688,1748791633731,-430.0,0.00016438,2]
[363625689,1748791633753,-430.0,0.00016438,2]
[363625690,1748791633775,-430.0,0.00016438,2]
[363625691,1748791633796,-430.0,0.00016438,2]
[363625692,1748791633818,-430.0,0.00016438,2]
[363625693,1748791633845,-430.0,0.00016438,2]
[363625694,1748791633868,-243.68424395,0.00016438,2]
[363625695,1748791633891,-430.0,0.00016438,2]
[363625696,1748791633914,-430.0,0.00016438,2]
[363625697,1748791633937,-494.42079598,0.00016438,2]
[363625698,1748791633959,-430.0,0.00016438,2]
[363625699,1748791633982,-430.0,0.00016438,2]
[363625700,1748791634005,-430.0,0.00016438,2]
[363625701,1748791634028,-430.0,0.00016438,2]
[363625702,1748791634052,-430.0,0.00016438,2]
[363625703,1748791634074,-430.0,0.00016438,2]
[363625704,1748791634098,-430.0,0.00016438,2]
[363625705,1748791634125,-430.0,0.00016438,2]
[363625706,1748791634149,-430.0,0.00016438,2]
[363625707,1748791634172,-234.68019203,0.00016438,2]
[363625708,1748791634195,-394.27382801,0.00016438,2]
[363625709,1748791634217,-430.0,0.00016438,2]
[363625710,1748791634241,-430.0,0.00016438,2]
[363625711,1748791634267,-538.88588065,0.00016438,2]
[363625712,1748791634291,-430.0,0.00016438,2]